bitfinex/quotes_ETHUSD_20250724
["timestamp","ask_amount","ask_price","bid_price","bid_amount"]
[1753344421736,1e-08,3601.5,3601.4,7.24480591]
[1753344421948,1e-08,3601.5,3601.4,11.86080591]
[1753344423139,1e-08,3601.5,3601.4,19.85327618]
[1753344423480,1e-08,3601.9,3601.8,2.77638958]
[1753344423627,1e-08,3601.9,3601.8,7.38938958]
[1753344423829,1e-08,3601.9,3601.8,2.77638958]
[1753344424057,1e-08,3601.9,3601.8,7.41615347]
[1753344424257,1e-08,3601.9,3601.8,7.38838958]
[1753344425242,1e-08,3601.9,3601.8,7.85418958]
[1753344425943,1e-08,3601.9,3601.8,7.38838958]
[1753344426568,1e-08,3601.9,3601.8,7.38538958]
[1753344426756,1e-08,3601.9,3601.8,2.77638958]
[1753344426961,1e-08,3601.9,3601.8,7.38438958]
[1753344427155,1e-08,3601.9,3601.8,7.38338958]
[1753344427362,1e-08,3601.9,3601.8,2.77638958]
[1753344427565,1e-08,3601.9,3601.8,7.38138958]
[1753344428737,1e-08,3601.9,3601.8,8.67088958]
[1753344429970,1e-08,3601.9,3601.8,7.37438958]
[1753344430236,1e-08,3601.9,3601.8,2.77638958]
[1753344430578,1e-08,3601.9,3601.8,2.91558958]
[1753344430784,1e-08,3601.9,3601.8,7.51258958]
[1753344430949,1e-08,3601.9,3601.8,2.91558958]
[1753344431151,1e-08,3601.9,3601.8,3.41615347]
[1753344431344,1e-08,3601.9,3601.8,7.98238958]
[1753344432041,1e-08,3602.3,3602.2,2.77608128]
[1753344432246,1e-08,3602.3,3602.2,7.37108128]
[1753344432479,1e-08,3602.3,3602.2,2.91528128]
[1753344432648,1e-08,3602.3,3602.2,7.50928128]
[1753344432848,1e-08,3602.3,3602.2,2.91528128]
[1753344433050,0.43670001,3602.3,3602.2,2.91528128]
[1753344433337,1.22140001,3602.3,3602.2,0.1392]
[1753344433541,1.22140001,3602.3,3602.2,7.50728128]
[1753344434051,0.25876282,3603.7,3602.2,7.50728128]
[1753344434052,0.14504751,3605.2,3604.5,3.57390989]
[1753344434262,1e-08,3604.9,3604.5,7.42730989]
[1753344434652,1e-08,3604.9,3604.5,10.90010989]
[1753344434854,1e-08,3604.9,3604.8,2.774079]
[1753344435051,1e-08,3604.9,3604.8,18.44529006]
[1753344435361,1e-08,3604.9,3604.8,7.427079]
[1753344435762,1e-08,3604.9,3604.8,7.426079]
[1753344435988,1e-08,3604.9,3604.8,2.774079]
[1753344436151,1e-08,3604.9,3604.8,4.651]
[1753344436351,1e-08,3604.9,3604.5,0.21341733]
[1753344436582,0.4367,3604.8,3604.6,4.65]
[1753344436757,1e-08,3604.9,3604.3,0.20687628]
[1753344436952,1e-08,3604.9,3604.8,10.76654927]
[1753344437155,1e-08,3604.9,3604.4,0.7913]
[1753344437453,1e-08,3604.9,3604.8,2.774079]
[1753344437659,1e-08,3604.9,3604.8,7.426079]
[1753344437867,1e-08,3604.9,3604.8,10.898879]
[1753344438791,1e-08,3604.9,3604.8,10.434079]
[1753344438964,1e-08,3604.9,3604.8,10.432079]
[1753344439489,0.4367,3606.1,3605.8,2.77330966]
[1753344439688,0.4367,3606.1,3605.8,7.43030966]
[1753344439888,0.4367,3606.5,3605.8,7.43030966]
[1753344440187,0.7643,3606.8,3605.8,2.77330966]
[1753344440363,0.7643,3606.8,3605.8,7.93084275]
[1753344440567,1e-08,3605.9,3605.8,10.90310966]
[1753344440768,1e-08,3605.9,3605.8,18.11710966]
[1753344441083,1e-08,3605.9,3605.8,19.34075403]
[1753344441278,0.04,3606.9,3606.8,2.77254075]
[1753344441590,1e-08,3606.9,3606.8,2.77254075]
[1753344441792,1e-08,3606.9,3606.8,7.42654075]
[1753344442353,1e-08,3606.9,3606.8,2.77254075]
[1753344442559,1e-08,3606.9,3606.8,7.87158512]
[1753344442918,1e-08,3606.9,3606.8,2.77254075]
[1753344443061,1e-08,3606.9,3606.8,7.42654075]
[1753344443258,1e-08,3606.9,3606.8,2.77254075]
[1753344443476,1e-08,3606.9,3606.8,7.42454075]
[1753344444203,1e-08,3606.9,3606.8,7.56094075]
[1753344444573,0.43670001,3606.9,3606.8,0.34657721]
[1753344444896,0.43670001,3606.9,3606.8,4.99157721]
[1753344445115,1e-08,3606.9,3606.8,8.58011796]
[1753344445259,2.92597981,3608.1,3606.8,8.58011796]
[1753344445260,1e-08,3609.0,3608.9,2.77092742]
[1753344445456,1e-08,3609.0,3608.9,6.95794262]
[1753344445660,1e-08,3609.0,3608.9,0.1384]
[1753344445990,3.20755066,3609.0,3608.9,0.34738862]
[1753344446158,1e-08,3609.0,3608.9,0.1384]
[1753344446498,1e-08,3609.0,3608.9,0.02770927]
[1753344446682,1e-08,3609.0,3608.9,4.718]
[1753344446859,1e-08,3609.0,3608.9,0.21073609]
[1753344447059,1e-08,3609.0,3608.9,7.48492742]
[1753344447483,1e-08,3609.0,3608.9,4.714]
[1753344447683,1e-08,3609.0,3608.9,4.92573464]
[1753344447910,0.43670001,3609.0,3608.9,4.92573464]
[1753344448103,3.20755066,3609.0,3608.9,0.21173464]
[1753344448272,0.43670001,3609.0,3608.9,4.715]
[1753344448897,0.43670001,3609.0,3607.8,6.662]
[1753344448898,2.77092742,3608.9,3607.8,6.662]
[1753344449079,2.77146676,3608.2,3607.9,4.713]
[1753344449301,2.77146676,3608.2,3607.9,0.21262918]
[1753344449302,2.77169191,3608.0,3607.9,0.21262918]
[1753344449511,2.77169191,3608.0,3607.1,0.04]
[1753344449512,0.7847,3608.0,3607.1,0.04]
[1753344449712,3.20846435,3607.9,3607.2,4.711]
[1753344450022,0.4367,3607.9,3607.1,0.04]
[1753344450329,0.4367,3607.9,3607.2,4.73572233]
[1753344450640,0.7847,3608.0,3607.6,2.771904]
[1753344450842,0.7847,3608.0,3607.7,7.4787912]
[1753344451055,0.43670001,3609.0,3607.9,0.751]
[1753344451331,1e-08,3609.0,3608.9,2.77092742]
[1753344451641,1e-08,3609.0,3608.9,7.68379733]
[1753344452496,0.43670001,3609.0,3608.9,7.68379733]
[1753344452697,1e-08,3609.0,3608.9,7.68379733]
[1753344453015,1e-08,3609.0,3608.9,4.90686991]
[1753344453194,1e-08,3609.0,3608.9,7.67779733]
[1753344453594,1e-08,3609.0,3608.9,2.97479733]
[1753344453793,1e-08,3609.0,3608.9,7.7025066]
[1753344454041,1e-08,3609.0,3608.9,7.67479733]
[1753344454740,1e-08,3609.0,3608.9,8.14759733]
[1753344455111,1e-08,3609.0,3608.9,7.67479733]
[1753344455496,1e-08,3609.0,3608.9,8.14759733]
[1753344455727,1e-08,3609.0,3608.9,7.67479733]
[1753344455928,1e-08,3609.0,3608.9,8.90659733]
[1753344456437,0.002,3610.5,3610.4,2.7697762]
[1753344456737,0.002,3610.5,3610.4,7.4787762]
[1753344457343,0.7816,3611.7,3610.5,0.804]
[1753344457545,0.73047391,3611.6,3611.3,2.76908592]
[1753344457705,0.73047391,3611.6,3611.4,7.19029807]
[1753344457706,0.25657391,3611.5,3611.4,7.19029807]
[1753344458427,0.25657391,3611.5,3611.4,7.39952999]
[1753344458937,0.04,3611.9,3611.8,2.76870258]
[1753344459139,0.04,3611.9,3611.8,7.51970258]
[1753344459538,0.04,3611.9,3611.8,7.51870258]
[1753344459945,0.04,3611.9,3611.8,4.75]
[1753344460129,0.04,3611.9,3611.8,7.51870258]
[1753344460465,0.04,3611.9,3611.8,7.51370258]
[1753344460741,0.04,3611.9,3611.8,4.745]
[1753344460941,0.04,3611.9,3611.8,4.56483378]
[1753344461157,0.04,3611.9,3611.8,4.23219756]
[1753344461367,0.5139,3611.9,3611.2,2.76909719]
[1753344461508,2.76875372,3611.8,3611.3,4.743]
[1753344461719,0.4739,3611.7,3611.2,0.20750634]
[1753344461912,0.4739,3611.6,3611.3,4.742]
[1753344462256,3.24290707,3611.5,3611.4,4.74]
[1753344462423,0.4739,3611.5,3611.4,4.74]
[1753344462622,0.7847,3611.8,3611.4,4.74]
[1753344462824,0.04,3611.9,3611.5,0.02768932]
[1753344463055,0.04,3611.9,3611.4,4.74]
[1753344463219,0.04,3611.9,3611.8,2.76870258]
[1753344463412,0.04,3611.9,3611.8,7.50770258]
[1753344465315,1e-08,3611.9,3611.8,7.97940258]
[1753344465716,1e-08,3611.9,3611.8,7.97140258]
[1753344465916,0.7847,3614.6,3613.1,0.7644]
[1753344466153,0.7847,3613.7,3613.2,4.756]
[1753344466470,0.7847,3613.7,3613.3,4.756]
[1753344466471,0.4739,3613.6,3613.3,4.756]
[1753344466763,2.7674338,3613.5,3613.2,4.757]
[1753344466962,2.7675532,3613.3,3612.5,6.651]
[1753344467166,3.24154632,3613.2,3612.6,4.756]
[1753344467325,0.4739,3613.2,3612.6,4.756]
[1753344467526,0.4739,3613.2,3613.1,0.1384]
[1753344467722,3.2415298,3613.2,3613.1,4.8924]
[1753344468260,3.2415298,3613.2,3613.1,4.8894]
[1753344468467,3.2415298,3613.2,3613.1,0.1384]
[1753344468857,0.4739,3613.2,3613.1,0.1384]
[1753344469054,3.2415298,3613.2,3613.1,0.34973023]
[1753344469762,3.2995298,3613.2,3613.1,0.34973023]
[1753344469971,3.2995298,3613.2,3613.1,0.1384]
[1753344470372,2.76772911,3613.1,3612.7,4.75]
[1753344470671,0.4739,3613.0,3612.8,4.749]
[1753344470995,0.4739,3613.4,3613.0,0.1384]
[1753344471194,0.25547224,3613.7,3613.5,2.76740002]
[1753344471360,0.25547224,3613.7,3613.6,4.747]
[1753344471759,0.4739,3613.8,3613.6,4.747]
[1753344471992,0.4739,3613.7,3613.6,4.747]
[1753344472183,0.4739,3613.7,3613.1,2.76766837]
[1753344472380,0.4739,3613.7,3613.2,4.745]
[1753344472582,0.04,3613.9,3613.2,4.745]
[1753344472583,0.4739,3613.6,3613.2,4.745]
[1753344472790,0.4739,3613.5,3613.2,4.745]
[1753344472991,0.4739,3613.5,3613.3,2.7674821]
[1753344473197,0.04,3613.9,3613.1,0.20604908]
[1753344473394,0.04,3613.9,3612.2,0.7814]
[1753344473561,2.7677053,3613.2,3612.4,2.76818108]
[1753344473762,0.04,3613.9,3611.8,0.7941]
[1753344473966,0.4739,3613.8,3612.4,0.7941]
[1753344474201,0.4739,3613.8,3611.9,5.2097]
[1753344474202,0.7847,3613.6,3611.9,0.7941]
[1753344474375,2.76748993,3613.4,3612.5,2.76811085]
[1753344474699,0.4739,3613.3,3612.6,4.749]
[1753344474899,0.4739,3613.3,3612.7,0.02768012]
[1753344475103,0.7847,3613.6,3613.2,2.76759147]
[1753344475268,0.7847,3613.6,3613.4,2.76747661]
[1753344475468,0.4739,3613.5,3613.3,2.76752772]
[1753344475671,0.7847,3613.6,3613.3,2.76752772]
[1753344475887,0.4739,3613.4,3613.2,7.51461693]
[1753344476065,0.4739,3613.4,3613.2,4.747]
[1753344476399,0.7847,3613.6,3613.3,2.76754074]
[1753344476772,0.7847,3613.6,3613.2,4.747]
[1753344476965,0.7847,3613.6,3613.3,2.7675532]
[1753344477170,0.7847,3613.6,3613.2,7.5145937]
[1753344477366,0.7847,3613.6,3613.5,2.76740002]
[1753344477709,1.2586,3613.6,3613.4,2.7674693]
[1753344477904,1.2586,3613.6,3613.5,2.76740002]
[1753344478091,0.7847,3613.6,3613.3,2.7675532]
[1753344478410,0.4739,3613.5,3613.2,4.747]
[1753344478590,0.4739,3613.4,3613.2,7.51456831]
[1753344478790,0.4739,3613.3,3613.2,4.732]
[1753344478978,0.4739,3613.3,3613.2,7.4996298]
[1753344479318,0.4739,3613.3,3613.1,0.21224768]
[1753344479507,0.4739,3613.2,3612.8,7.49890808]
[1753344479695,0.4739,3613.1,3612.9,2.76784468]
[1753344479884,0.4739,3613.0,3612.8,4.731]
[1753344480081,3.55206403,3613.6,3612.8,4.731]
[1753344480281,0.7847,3613.6,3612.8,4.731]
[1753344480503,0.4739,3613.5,3612.8,7.49890677]
[1753344480711,3.24130026,3613.5,3612.9,2.76784923]
[1753344480912,0.4739,3613.4,3612.8,4.731]
[1753344481116,0.4739,3613.4,3611.8,2.76869491]
[1753344481117,0.4739,3613.4,3613.2,0.1384]
[1753344481314,0.4739,3613.3,3613.2,0.1384]
[1753344481682,3.2414532,3613.3,3613.2,0.1384]
[1753344481985,0.4739,3613.3,3613.2,0.1384]
[1753344482186,2.76765107,3613.2,3612.9,4.721]
[1753344482380,0.25563431,3613.3,3613.1,0.1384]
[1753344482624,2.76760337,3613.3,3613.1,0.1384]
[1753344482821,0.4739,3613.2,3613.1,0.1384]
[1753344483115,0.4739,3613.2,3613.1,0.34527649]
[1753344483320,2.76740844,3613.5,3613.1,0.34527649]
[1753344483518,2.76748032,3613.4,3613.1,0.34527649]
[1753344483817,0.4739,3613.4,3613.1,0.34527649]
[1753344484026,2.76755547,3613.3,3613.1,0.34527649]
[1753344484186,0.4739,3613.3,3613.1,0.34527649]
[1753344484517,0.4739,3613.2,3613.1,0.34527649]
[1753344485085,3.55205294,3613.6,3613.1,0.34527649]
[1753344485086,0.7847,3613.6,3613.1,0.34527649]
[1753344485307,0.4739,3613.5,3613.1,0.34527649]
[1753344485715,2.76756013,3613.3,3613.1,0.34527649]
[1753344486035,0.4739,3613.2,3613.1,0.34527649]
[1753344487109,3.2415298,3613.2,3613.1,0.34527649]
[1753344487309,0.4739,3613.2,3613.1,0.34527649]
[1753344488909,2.76740719,3613.5,3613.1,0.34527649]
[1753344489246,1.48583431,3613.6,3613.1,0.34527649]
[1753344489533,0.4455,3613.5,3613.1,0.34527649]
[1753344489735,0.4455,3613.4,3613.1,0.20687649]
[1753344490036,0.4455,3613.4,3613.3,0.1384]
[1753344491350,3.21297661,3613.4,3613.3,0.1384]
[1753344491537,0.4455,3613.4,3613.3,0.1384]
[1753344491919,3.21297661,3613.4,3613.3,0.1384]
[1753344492119,0.4455,3613.4,3613.3,0.1384]
[1753344493658,3.21297661,3613.4,3613.3,0.1384]
[1753344494214,2.7675606,3613.3,3613.1,0.20569313]
[1753344494417,0.7847,3613.2,3613.0,4.668]
[1753344494629,0.7847,3613.2,3612.7,2.76800231]
[1753344494833,1.2302,3613.2,3613.1,0.1384]
[1753344495032,3.5523298,3613.2,3613.1,0.1384]
[1753344495444,0.25563431,3613.3,3613.1,0.1384]
[1753344495616,3.2131298,3613.2,3613.1,0.1384]
[1753344495822,0.4455,3613.2,3613.1,0.1384]
[1753344496034,0.4455,3613.2,3613.1,0.34334333]
[1753344497829,3.2131298,3613.2,3613.1,0.34334333]
[1753344498236,3.2131298,3613.2,3613.1,0.20494333]
[1753344498457,2.76787904,3612.9,3612.8,4.652]
[1753344498637,3.21337904,3612.9,3612.7,0.1384]
[1753344498834,3.0266238,3613.0,3612.7,0.1384]
[1753344499046,0.4455,3612.8,3612.7,0.1384]
[1753344499422,0.2588333,3613.3,3613.0,2.76771088]
[1753344499757,0.02769026,3613.5,3613.2,0.1384]
[1753344499957,0.28652356,3613.5,3613.2,4.7854]
[1753344500137,0.28652356,3613.5,3613.2,4.7834]
[1753344500341,0.4455,3613.4,3613.2,4.7834]
[1753344500833,0.4455,3613.4,3613.2,7.55102798]
[1753344501032,0.4455,3613.4,3613.2,0.1384]
[1753344501268,0.28652356,3613.5,3613.3,4.645]
[1753344501471,0.2588333,3613.5,3613.3,4.645]
[1753344501673,0.7043333,3613.5,3613.3,4.645]
[1753344502243,0.4455,3613.5,3613.3,4.645]
[1753344502461,0.4455,3613.5,3613.3,7.41253654]
[1753344502660,0.4455,3613.5,3613.3,4.645]
[1753344503072,2.76744455,3613.5,3613.3,4.645]
[1753344503274,0.4455,3613.4,3613.2,0.1384]
[1753344503640,0.4455,3613.3,3613.2,4.7714]
[1753344504270,0.4455,3613.3,3613.2,0.1384]
[1753344504472,0.4455,3613.3,3613.2,4.7704]
[1753344504976,0.4455,3613.3,3613.1,4.84132055]
[1753344505269,0.4455,3613.2,3613.1,4.7684]
[1753344505472,1.2249,3613.6,3613.1,4.7644]
[1753344505676,0.47319026,3613.5,3613.1,0.1384]
[1753344505884,0.47319026,3613.5,3613.1,4.7634]
[1753344506051,2.76754214,3613.4,3613.1,0.1384]
[1753344506247,7.94592703,3613.2,3612.1,0.756]
[1753344506548,0.7512,3612.7,3611.2,0.20578076]
[1753344506749,2.76845699,3612.2,3611.5,4.624]
[1753344506948,0.1384,3612.4,3611.9,0.1384]
[1753344507149,0.4455,3612.3,3611.8,0.02868702]
[1753344507344,0.4455,3612.3,3612.1,0.1384]
[1753344507548,3.5192275,3612.7,3612.1,0.1384]
[1753344507549,0.7512,3612.7,3612.1,4.7614]
[1753344507848,0.4455,3612.6,3612.1,4.7614]
[1753344508167,0.7512,3612.7,3612.5,0.1384]
[1753344508680,0.783,3613.1,3613.0,2.767783]
[1753344508880,0.783,3613.1,3612.8,4.622]
[1753344509085,0.783,3613.1,3612.9,0.1384]
[1753344509250,0.783,3613.1,3612.1,2.76842164]
[1753344509251,3.213283,3613.0,3611.7,0.4533]
[1753344509578,3.55073028,3613.1,3612.7,0.1384]
[1753344509781,0.4455,3613.0,3612.7,0.1384]
[1753344509959,2.76786042,3612.9,3612.7,0.1384]
[1753344510156,3.21336042,3612.9,3612.7,0.1384]
[1753344510479,3.47187695,3612.8,3612.7,0.1384]
[1753344510979,2.76839317,3612.3,3611.8,0.001]
[1753344511180,2.7684222,3612.2,3612.0,0.1384]
[1753344511482,2.7684135,3612.2,3612.0,0.1384]
[1753344511787,3.24166289,3612.1,3611.8,0.001]
[1753344511989,2.76862593,3611.9,3611.8,0.001]
[1753344512480,0.4455,3611.9,3611.8,0.001]
[1753344513348,3.21412593,3611.9,3611.8,0.001]
[1753344513548,0.4455,3611.9,3611.8,0.001]
[1753344514155,0.7847,3612.3,3611.8,0.001]
[1753344514351,0.9231,3612.3,3611.8,0.1394]
[1753344514570,0.9231,3612.3,3612.0,2.90693278]
[1753344514571,0.7847,3612.3,3612.0,2.90693278]
[1753344514765,1.04328753,3612.7,3612.1,4.605]
[1753344514985,0.5839,3613.0,3612.5,2.76810917]
[1753344515286,0.1384,3613.0,3612.6,4.604]
[1753344515488,1.04528753,3613.2,3613.0,2.76776618]
[1753344515489,0.002,3613.2,3613.0,2.76776618]
[1753344515690,0.002,3613.2,3613.1,2.9061064]
[1753344515890,0.002,3613.2,3613.1,0.1384]
[1753344516796,0.4475,3613.2,3611.9,0.4533]
[1753344517093,2.76793622,3612.8,3611.5,1.2777]
[1753344517292,0.7847,3613.0,3611.6,4.63068855]
[1753344517495,3.69088462,3613.0,3612.5,0.1384]
[1753344517696,0.4557,3612.9,3612.5,0.1384]
[1753344517991,0.7729,3612.7,3612.1,0.1384]
[1753344518156,2.90668837,3612.4,3611.9,0.1384]
[1753344518360,0.4557,3612.3,3611.9,0.1384]
[1753344518684,0.4557,3612.2,3611.9,0.1384]
[1753344518887,2.76852494,3612.1,3611.9,0.1384]
[1753344519076,0.4557,3612.0,3611.9,0.1384]
[1753344519962,3.22424928,3612.0,3611.8,0.001]
[1753344520290,0.48339026,3611.9,3611.8,0.001]
[1753344520460,0.4557,3611.9,3611.8,0.001]
[1753344521293,3.25201619,3611.9,3611.8,0.001]
[1753344521503,1.2328,3611.9,3611.8,0.001]
[1753344521697,4.13982593,3611.9,3611.8,0.001]
[1753344522261,4.16751619,3611.9,3611.8,0.001]
[1753344522684,4.13982593,3611.9,3611.8,0.001]
[1753344525603,4.68982593,3611.9,3611.8,0.001]
[1753344525806,4.71751619,3611.9,3611.8,0.001]
[1753344525980,4.71751619,3611.9,3611.8,1e-08]
[1753344526480,7.71751619,3611.9,3611.8,1e-08]
[1753344526675,7.68982593,3611.9,3611.8,1e-08]
[1753344527405,22.32949426,3611.9,3611.8,1e-08]
[1753344528213,26.76282593,3611.9,3611.8,1e-08]
[1753344528592,26.90311519,3611.9,3611.8,1e-08]
[1753344528823,7.83011519,3611.9,3611.8,1e-08]
[1753344529025,8.71282593,3611.9,3611.8,1e-08]
[1753344529240,4.13982593,3611.9,3611.8,1e-08]
[1753344529405,2.76845057,3612.2,3611.8,1e-08]
[1753344529605,0.1384,3612.0,3611.8,1e-08]
[1753344530148,2.90696502,3612.0,3611.8,1e-08]
[1753344530889,0.5941,3612.0,3611.8,1e-08]
[1753344531093,0.1384,3612.0,3611.8,1e-08]
[1753344532156,2.76862593,3611.9,3611.8,1e-08]
[1753344532341,3.22432593,3611.9,3611.8,1e-08]
[1753344533354,0.1384,3612.0,3611.8,1e-08]
[1753344533355,2.90699473,3612.0,3611.8,1e-08]
[1753344534199,0.1384,3612.0,3611.8,1e-08]
[1753344534554,4.558,3612.5,3612.0,0.8101]
[1753344534745,0.1384,3612.4,3612.0,1.2801]
[1753344535298,0.002,3612.8,3612.1,0.47]
[1753344535463,0.002,3612.8,3612.7,2.76801284]
[1753344535848,0.002,3612.8,3612.7,3.23801284]
[1753344536055,0.002,3612.8,3612.7,4.13971284]
[1753344537043,0.002,3612.8,3612.7,0.9017]
[1753344537243,0.002,3612.8,3612.3,0.7593]
[1753344537451,0.002,3612.8,3612.6,0.1384]
[1753344538044,0.002,3612.8,3612.6,0.6084]
[1753344538306,0.002,3612.8,3612.7,3.23801284]
[1753344538648,0.002,3612.8,3612.6,0.1384]
[1753344539358,0.002,3612.8,3612.4,2.76822773]
[1753344539543,0.002,3612.8,3612.5,2.90650124]
[1753344539747,0.002,3612.8,3612.7,2.90641284]
[1753344539967,0.002,3612.8,3612.7,0.1384]
[1753344540163,0.002,3612.8,3612.7,3.37641284]
[1753344540381,0.002,3612.8,3612.7,0.6084]
[1753344541887,0.002,3612.8,3612.7,3.37641284]
[1753344542063,0.002,3612.8,3612.7,4.20701284]
[1753344543064,0.002,3612.8,3612.7,8.75001284]
[1753344543987,0.002,3612.8,3612.7,4.20701284]
[1753344544286,0.002,3612.8,3612.7,8.74901284]
[1753344544599,0.002,3612.8,3612.7,8.74701284]
[1753344544892,0.002,3612.8,3612.7,8.74501284]
[1753344545050,0.002,3612.8,3612.7,5.506]
[1753344545256,0.002,3612.8,3612.7,8.27401284]
[1753344545491,0.002,3612.8,3612.3,0.7933]
[1753344545784,0.002,3612.8,3612.5,0.1384]
[1753344546695,2.76820037,3612.5,3611.9,0.817]
[1753344546855,0.48539026,3612.8,3612.2,0.1384]
[1753344546856,2.76831935,3612.3,3612.2,0.1384]
[1753344547190,2.76831935,3612.3,3611.9,0.817]
[1753344547191,0.1384,3612.4,3611.9,0.1384]
[1753344547562,4.00841919,3612.7,3611.8,4.53300001]
[1753344547912,4.00841919,3612.7,3611.9,4.532]
[1753344547913,3.55274846,3612.7,3611.9,4.532]
[1753344548103,0.1384,3612.6,3612.1,0.1384]
[1753344548315,2.76816608,3612.5,3612.1,0.1384]
[1753344548592,2.76824631,3612.4,3612.1,0.1384]
[1753344548795,2.76839599,3612.2,3612.1,0.1384]
[1753344548990,2.79606553,3612.3,3611.8,4.53100001]
[1753344549153,2.76839775,3612.2,3611.9,0.1384]
[1753344549354,0.02769026,3612.1,3611.9,0.1384]
[1753344549792,2.7961686,3612.1,3611.9,0.1384]
[1753344550092,2.76847037,3612.2,3611.8,1e-08]
[1753344550294,3.21091099,3612.0,3611.8,1e-08]
[1753344550606,0.5807,3612.2,3611.8,1e-08]
[1753344550982,0.4423,3612.1,3611.8,1e-08]
[1753344551603,0.4423,3612.0,3611.8,1e-08]
[1753344551959,2.76862593,3611.9,3611.8,1e-08]
[1753344552258,3.21092593,3611.9,3611.8,1e-08]
[1753344552761,3.23861619,3611.9,3611.8,1e-08]
[1753344552987,4.00451619,3611.9,3611.8,1e-08]
[1753344553195,3.97682593,3611.9,3611.8,1e-08]
[1753344553681,0.7659,3611.9,3611.8,1e-08]
[1753344553864,2.90700313,3612.0,3611.8,1e-08]
[1753344554059,2.76862593,3611.9,3611.8,1e-08]
[1753344554702,0.1384,3612.0,3611.8,1e-08]
[1753344554909,0.4423,3612.6,3611.8,1e-08]
[1753344555159,0.1384,3612.3,3611.8,0.13840001]
[1753344555392,2.76839637,3612.2,3611.8,0.13840001]
[1753344555759,2.90674801,3612.3,3611.8,0.13840001]
[1753344555956,0.1384,3612.3,3611.8,0.56910001]
[1753344556159,2.76998627,3612.8,3611.9,0.4307]
[1753344556504,0.1384,3612.7,3612.1,2.9068269]
[1753344556673,0.1384,3612.7,3612.1,0.1384]
[1753344556877,2.76819451,3612.5,3612.1,0.1384]
[1753344557080,2.76810237,3612.6,3612.1,0.1384]
[1753344557313,0.1384,3612.7,3612.1,0.1384]
[1753344557602,2.76809905,3612.6,3612.1,0.1384]
[1753344557755,2.90643316,3612.7,3612.1,2.90685423]
[1753344557960,2.76817502,3612.5,3612.1,0.1384]
[1753344558265,2.76810688,3612.6,3612.1,0.1384]
[1753344558666,0.4423,3612.5,3612.1,0.1384]
[1753344559165,2.76811834,3612.6,3612.1,0.1384]
[1753344559383,2.76827402,3612.4,3612.1,0.1384]
[1753344559586,2.76814971,3612.6,3612.1,0.1384]
[1753344559787,2.76832782,3612.3,3612.1,0.1384]
[1753344559977,0.4423,3612.2,3612.1,0.1384]
[1753344560560,3.34877652,3612.7,3612.1,0.1384]
[1753344560979,2.90647652,3612.7,3612.1,0.1384]
[1753344561177,0.002,3612.8,3612.2,2.76833453]
[1753344561494,2.76803679,3612.7,3612.3,0.1384]
[1753344561682,0.002,3612.8,3612.3,2.9067003]
[1753344561884,0.002,3612.8,3612.5,0.8179]
[1753344562092,0.002,3612.8,3612.5,8.22344827]
[1753344562272,0.002,3612.8,3612.5,5.886]
[1753344562778,2.77001202,3612.8,3612.5,5.4553]
[1753344562973,2.76808946,3612.6,3612.2,0.7863]
[1753344563211,2.76808946,3612.6,3612.2,0.1384]
[1753344563511,2.768288,3612.4,3612.2,0.1384]
[1753344563715,3.21049865,3612.5,3612.2,0.1384]
[1753344564074,0.4423,3612.4,3612.0,4.6314]
[1753344564610,3.21055571,3612.4,3612.0,4.6314]
[1753344565317,0.4423,3612.4,3612.0,4.6314]
[1753344565514,0.1384,3612.5,3612.0,4.6314]
[1753344565815,0.1384,3612.5,3612.1,2.76842462]
[1753344566116,0.002,3612.8,3612.4,2.76824271]
[1753344566318,0.002,3612.8,3612.5,0.1384]
[1753344566491,0.002,3612.8,3612.6,0.7744]
[1753344566807,0.002,3612.8,3612.7,2.93409296]
[1753344567190,0.002,3612.8,3612.7,3.33711284]
[1753344567776,0.002,3612.8,3612.7,3.55001008]
[1753344568178,0.002,3612.8,3612.7,8.03601008]
[1753344568679,0.002,3612.8,3612.7,8.80891008]
[1753344569915,0.002,3612.8,3612.7,4.11001284]
[1753344570216,0.002,3612.8,3612.7,3.67931284]
[1753344570390,0.002,3612.8,3612.7,4.6204]
[1753344570795,0.002,3612.8,3612.7,7.38841284]
[1753344571109,0.002,3612.8,3612.7,7.81911284]
[1753344571316,0.002,3612.8,3612.7,8.64891284]
[1753344572440,1e-08,3613.2,3612.7,8.64891284]
[1753344572584,1e-08,3613.2,3613.1,11.48368262]
[1753344572778,1e-08,3613.2,3613.1,15.97068262]
[1753344573095,0.002,3613.6,3613.5,3.53790002]
[1753344573096,1e-08,3613.6,3613.5,3.53790002]
[1753344573304,1e-08,3613.6,3613.5,8.05157402]
[1753344573613,0.04,3614.9,3613.9,0.7705]
[1753344573936,0.04,3614.9,3614.8,3.55410478]
[1753344574129,0.04,3614.9,3614.8,8.04510478]
[1753344574296,0.4823,3614.9,3613.5,0.7877]
[1753344574620,0.02769026,3614.8,3613.6,4.495]
[1753344574788,2.76685377,3614.3,3613.6,4.495]
[1753344574984,2.7669036,3614.2,3613.6,4.495]
[1753344575291,2.76708671,3614.0,3613.7,4.495]
[1753344575493,0.4423,3614.0,3613.8,4.495]
[1753344575693,0.4423,3613.9,3613.1,0.8049]
[1753344575892,3.20944536,3613.9,3613.2,4.493]
[1753344576106,3.20944536,3613.9,3613.2,7.26062454]
[1753344576304,0.4423,3613.9,3613.2,4.493]
[1753344576704,2.76723897,3613.8,3613.2,4.493]
[1753344577028,2.76726012,3613.7,3613.2,4.493]
[1753344577178,0.4738,3613.7,3613.3,4.493]
[1753344577580,2.76725051,3613.7,3613.3,4.493]
[1753344577817,2.76733676,3613.6,3613.1,0.8049]
[1753344578020,3.26881946,3613.6,3613.2,4.49]
[1753344578316,3.025496,3614.1,3613.1,4.49]
[1753344578317,0.4738,3613.5,3613.1,4.49]